bitfinex/quotes_ETHUSD_20220109
["timestamp","ask_amount","ask_price","bid_price","bid_amount"]
[1641757552386,0.00113685,3203.6,3203.5,1.61632835]
[1641757552582,0.00113685,3203.6,3203.5,1.5605]
[1641757552783,0.00113685,3203.6,3203.5,2.0105]
[1641757552989,0.00113685,3203.6,3203.5,10.27873276]
[1641757553184,0.00113685,3203.6,3203.5,11.50692232]
[1641757553384,0.00113685,3203.6,3203.5,12.88567778]
[1641757554237,0.0017182,3204.1,3203.8,0.78008]
[1641757554439,0.0017182,3204.1,3203.9,7.1699]
[1641757554636,0.0017182,3204.1,3204.0,0.45]
[1641757555036,0.00456032,3204.1,3204.0,0.45]
[1641757555238,0.00456032,3204.1,3204.0,2.96462294]
[1641757555439,0.00456032,3204.1,3204.0,3.74478294]
[1641757555840,0.00456032,3204.1,3204.0,1.23016]
[1641757556246,0.00284212,3204.1,3204.0,1.23016]
[1641757557443,0.00284212,3204.1,3204.0,0.45]
[1641757558285,1.26350075,3203.7,3203.6,7.77699]
[1641757558487,1.26350075,3203.7,3203.4,1.56051]
[1641757560191,1.26350075,3203.7,3203.4,1.63854]
[1641757560388,0.0022737,3204.0,3203.5,0.06971704]
[1641757560589,0.0022737,3204.0,3203.7,0.78028]
[1641757560790,0.00170527,3203.9,3203.8,0.04965376]
[1641757560987,0.00170527,3203.9,3203.7,0.78028]
[1641757561188,12.65,3203.8,3203.4,1.56051]
[1641757561390,4.04767945,3203.7,3202.9,0.07803]
[1641757561644,3.04767945,3203.7,3202.6,6.8342]
[1641757561839,2.96964945,3203.7,3203.0,0.00341054]
[1641757562034,12.72916685,3203.8,3202.8,0.78047]
[1641757562235,2.49175533,3203.2,3202.9,0.06421406]
[1641757562437,0.00113685,3203.8,3202.9,0.00397896]
[1641757563138,0.00113685,3203.8,3202.9,0.78044]
[1641757563340,0.00113685,3203.8,3202.9,0.85847]
[1641757563639,1.34168753,3203.5,3202.9,0.07803]
[1641757564641,2.85244438,3203.5,3202.9,0.07803]
[1641757565785,2.85244438,3203.5,3202.9,0.85846]
[1641757566187,2.85244438,3203.5,3202.9,0.07803]
[1641757566389,2.75361421,3203.4,3202.9,0.07803]
[1641757566588,2.75361421,3203.4,3202.8,0.00454739]
[1641757566989,2.75361421,3203.4,3202.7,0.00511581]
[1641757567886,2.85244438,3203.5,3202.8,0.05560601]
[1641757568088,1.30962383,3202.9,3202.7,0.00511581]
[1641757568286,1.34168753,3203.5,3202.6,1.56091]
[1641757568786,2.79230554,3203.6,3202.6,1.56091]
[1641757568987,2.74564376,3203.7,3202.6,1.56091]
[1641757569638,2.69473714,3203.7,3202.6,2.3413734]
[1641757569838,0.01267031,3203.7,3202.6,2.3413734]
[1641757570136,2.70199909,3203.7,3202.6,2.3413734]
[1641757570335,1.13184104,3203.4,3202.7,1.17102711]
[1641757570735,1.13184104,3203.4,3202.8,0.00454739]
[1641757570936,1.13184104,3203.4,3202.9,0.78045]
[1641757571438,1.13184104,3203.4,3203.0,0.00341054]
[1641757571935,1.13184104,3203.4,3202.9,0.78046]
[1641757572341,1.13184104,3203.4,3203.0,0.00341054]
[1641757573992,1.13184104,3203.4,3202.7,0.78561581]
[1641757575800,1.13184104,3203.4,3202.9,0.78044]
[1641757576197,1.13184104,3203.4,3203.0,0.00341054]
[1641757576636,1.13184104,3203.4,3202.9,0.00397896]
[1641757576831,0.00113685,3203.8,3203.1,0.78039]
[1641757577033,0.00113685,3203.8,3203.2,0.09864747]
[1641757577231,0.00113685,3203.8,3203.2,0.10092116]
[1641757577431,0.00113685,3203.8,3203.3,0.00170527]
[1641757577635,2.65844553,3203.8,3203.3,0.00170527]
[1641757577831,2.65844553,3203.8,3203.1,0.00284212]
[1641757578031,3.924387,3203.8,3203.1,0.78314212]
[1641757578232,3.924387,3203.8,3203.1,2.34376002]
[1641757578432,1.26707832,3203.8,3203.2,0.00227369]
[1641757579334,2.65730868,3203.7,3203.2,0.00227369]
[1641757579532,2.65730868,3203.7,3203.5,0.7803078]
[1641757579731,2.65730868,3203.7,3203.6,0.7803]
[1641757580592,1.26707832,3203.8,3203.6,0.7803]
[1641757581092,0.00113685,3203.8,3203.6,0.7803]
[1641757581497,2.65733295,3203.7,3203.6,0.7803]
[1641757581693,2.65733295,3203.7,3203.4,1.56059]
[1641757582296,0.00113685,3203.8,3203.4,1.56059]
[1641757582494,1.35741496,3203.8,3203.4,1.56059]
[1641757583799,2.65733295,3203.7,3203.4,1.56059]
[1641757585039,2.65733295,3203.7,3203.4,2.3409328]
[1641757585242,2.65733295,3203.7,3203.5,0.78034]
[1641757586643,2.65733295,3203.7,3203.3,0.78043]
[1641757587041,2.55733295,3203.7,3203.4,0.00113685]
[1641757588197,2.55733295,3203.7,3203.3,0.00170527]
[1641757588595,2.55733295,3203.7,3203.2,0.00227369]
[1641757588796,2.67079477,3203.6,3203.2,0.00227369]
[1641757589198,1.07803,3203.5,3203.2,0.00227369]
[1641757589399,3.09436506,3203.4,3203.1,0.00284212]
[1641757589800,0.07803,3203.3,3203.1,0.00284212]
[1641757590000,10.57252538,3203.2,3203.1,0.00284212]
[1641757590200,11.72949593,3203.2,3203.1,0.00284212]
[1641757591507,14.97949593,3203.2,3203.1,0.00284212]
[1641757591740,35.46422593,3203.2,3202.7,0.00511581]
[1641757592038,1.07804,3203.1,3202.5,0.00625266]
[1641757592241,1.07804,3203.1,3202.4,0.00682108]
[1641757592437,1.07804,3203.1,3202.6,0.00568423]
[1641757592637,1.07804,3203.1,3202.0,0.00909477]
[1641757592941,1.3653874,3202.1,3202.0,0.00909477]
[1641757593139,2.47091535,3202.1,3202.0,0.00909477]
[1641757593537,2.47091535,3202.1,3201.8,0.01023162]
[1641757593838,2.47091535,3202.1,3201.7,0.01080004]
[1641757596688,2.47091535,3202.1,3201.8,0.05787626]
[1641757596887,1.10552795,3202.1,3201.8,0.78073]
[1641757597087,1.10552795,3202.1,3201.9,0.0096632]
[1641757597787,1.10552795,3202.1,3201.8,0.01023162]
[1641757597992,1.10552795,3202.1,3201.8,0.79097162]
[1641757598187,1.10552795,3202.1,3201.8,0.01023162]
[1641757598388,1.10552795,3202.1,3201.9,0.0096632]
[1641757598587,1.10552795,3202.1,3201.8,0.01023162]
[1641757598989,1.10552795,3202.1,3201.7,0.08886004]
[1641757599241,1.10552795,3202.1,3201.8,0.01023162]
[1641757599639,1.10552795,3202.1,3201.7,0.01080004]
[1641757601246,1.10552795,3202.1,3201.8,0.78073]
[1641757601440,1.10552795,3202.1,3201.7,0.01080004]
[1641757601637,1.10552795,3202.1,3201.9,0.0096632]
[1641757601840,1.10552795,3202.1,3201.7,0.01182187]
[1641757602038,1.10552795,3202.1,3201.8,0.01023162]
[1641757603702,0.07806,3202.3,3201.8,0.01023162]
[1641757603902,3.3422399,3203.8,3201.9,0.15000364]
[1641757603903,0.07806,3202.6,3201.9,0.15000364]
[1641757604098,3.9873889,3202.9,3201.9,0.07806]
[1641757604298,3.9873889,3202.9,3202.0,0.45909477]
[1641757604499,3.9873889,3202.9,3202.1,0.07806]
[1641757604699,0.07806,3203.4,3202.1,0.08658635]
[1641757604900,1.29820888,3202.8,3202.2,0.06139967]
[1641757605101,1.29820888,3202.8,3202.4,0.780548]
[1641757605501,1.29820888,3202.8,3202.5,0.00625266]
[1641757605902,1.29820888,3202.8,3202.2,0.00795793]
[1641757606103,1.30681772,3202.7,3202.5,0.78051]
[1641757606502,0.07806,3203.5,3202.6,0.00568423]
[1641757606744,3.7928151,3203.5,3202.6,0.00568423]
[1641757606942,1.07806,3203.5,3202.6,0.00568423]
[1641757607146,0.07806,3203.5,3202.6,0.00568423]
[1641757607343,0.07806,3203.5,3202.6,0.78624423]
[1641757607344,1.11190338,3203.0,3202.6,0.78624423]
[1641757607543,1.50405711,3202.9,3202.6,0.78624423]
[1641757607743,1.50405711,3202.9,3202.2,0.07804]
[1641757607744,1.50405711,3202.9,3202.7,0.00511581]
[1641757607944,0.07804,3202.8,3202.7,0.00511581]
[1641757608142,1.50405711,3202.9,3202.3,0.0073895]
[1641757608346,1.50405711,3202.9,3202.2,0.78860793]
[1641757608745,1.50405711,3202.9,3202.4,0.05159612]
[1641757608943,1.50405711,3202.9,3202.3,0.0073895]
[1641757609145,1.50405711,3202.9,3202.5,0.00625266]
[1641757609443,1.50405711,3202.9,3202.2,0.78860793]
[1641757609846,0.07804,3203.1,3202.3,0.0073895]
[1641757610046,0.07804,3203.5,3202.4,0.05518424]
[1641757610247,4.06480161,3203.5,3202.3,1.5685095]
[1641757610498,4.06480161,3203.5,3202.6,0.78056]
[1641757610699,1.2784996,3203.1,3202.6,0.78056]
[1641757610901,2.34176238,3203.1,3202.7,0.00511581]
[1641757611101,2.64176238,3203.1,3202.7,0.00511581]
[1641757611299,0.07804,3203.0,3202.7,0.00511581]
[1641757611498,18.31,3202.9,3202.3,0.0073895]
[1641757611701,0.07806,3202.8,3202.3,0.0073895]
[1641757611899,1.0,3202.8,3202.3,0.0073895]
[1641757612099,1.53340125,3202.4,3202.3,0.0073895]
[1641757612398,1.4173647,3202.6,3202.3,0.0073895]
[1641757613001,1.4173647,3202.6,3202.0,0.00909477]
[1641757613405,1.4954247,3202.6,3202.0,0.00909477]
[1641757613599,1.4173647,3202.6,3201.9,0.0096632]
[1641757613800,1.4173647,3202.6,3201.8,0.01023162]
[1641757614640,2.65820738,3202.5,3201.8,0.01023162]
[1641757614938,1.42014009,3202.0,3201.7,0.01080004]
[1641757615139,1.16511735,3201.9,3201.7,0.01080004]
[1641757615740,1.16511735,3201.9,3201.6,0.01136847]
[1641757618293,1.16511735,3201.9,3201.6,0.79215847]
[1641757618495,1.16511735,3201.9,3201.7,0.14849622]
[1641757618694,1.16511735,3201.9,3201.7,0.08887004]
[1641757618891,0.07807,3202.8,3201.8,0.01023162]
[1641757619090,0.07807,3202.8,3202.5,0.00102238]
[1641757619391,0.07807,3202.8,3202.6,0.00568423]
[1641757619790,7.91506204,3202.7,3202.6,0.00568423]
[1641757619989,2.47387729,3202.7,3202.6,0.00568423]
[1641757620590,2.47387729,3202.7,3202.0,0.00909477]
[1641757620591,1.40881525,3202.7,3202.0,0.00909477]
[1641757620790,1.40881525,3202.7,3201.8,0.06015844]
[1641757620995,1.40881525,3202.7,3202.1,0.7806105]
[1641757621191,1.40881525,3202.7,3202.2,0.06462489]
[1641757621391,1.40881525,3202.7,3202.2,0.00795793]
[1641757621650,0.07806,3203.0,3202.4,0.05631877]
[1641757621840,0.07806,3203.0,3202.4,2.69715242]
[1641757622038,0.07806,3203.0,3202.5,0.78675846]
[1641757622239,0.07806,3203.0,3202.6,2.68661365]
[1641757622539,0.07806,3203.0,3202.7,0.00511581]
[1641757622940,0.07806,3203.0,3202.7,1.56602681]
[1641757623140,0.07806,3203.0,3202.8,0.13599327]
[1641757623341,0.07806,3203.0,3202.8,0.07804]
[1641757623544,0.07806,3203.0,3202.9,0.00397896]
[1641757623741,0.07806,3203.0,3202.9,0.08201896]
[1641757624142,0.07806,3203.0,3202.9,0.00397896]
[1641757627297,1.34202163,3203.0,3202.9,0.00397896]
[1641757628098,1.26396163,3203.0,3202.9,0.00397896]
[1641757628900,1.26396163,3203.0,3202.6,0.00568423]
[1641757629157,1.26396163,3203.0,3202.7,0.00511581]
[1641757629342,1.26396163,3203.0,3202.1,8.35152]
[1641757629343,2.26396163,3203.0,3202.6,0.00568423]
[1641757629543,1.16866034,3202.6,3202.5,0.00625266]
[1641757629743,1.16866034,3202.6,3202.3,0.0073895]
[1641757630042,1.2449777,3202.5,3202.2,0.00795793]
[1641757630243,1.2449777,3202.5,3202.2,1.56919393]
[1641757630443,1.2449777,3202.5,3202.2,0.78855393]
[1641757630643,1.2449777,3202.5,3202.3,0.0073895]
[1641757631044,1.07806,3203.1,3202.4,0.06198002]
[1641757631250,1.31079851,3203.0,3202.4,0.06198002]
[1641757631445,0.07804,3202.9,3202.5,0.00625266]
[1641757631846,0.07804,3202.9,3202.4,0.00682108]
[1641757632045,1.24395699,3202.6,3202.3,0.0073895]
[1641757632247,1.24395699,3202.6,3202.3,0.7880195]
[1641757632646,1.24395699,3202.6,3202.4,0.00682108]
[1641757632889,1.14395699,3202.6,3202.4,0.00682108]
[1641757634391,1.14395699,3202.6,3202.4,0.00784201]
[1641757634791,1.14395699,3202.6,3202.5,0.00625266]
[1641757635993,8.24395699,3202.6,3202.5,0.00625266]
[1641757636651,10.95221538,3202.6,3202.5,0.00625266]
[1641757637442,13.6102189,3202.6,3202.5,0.00625266]
[1641757637842,14.6102189,3202.6,3202.0,0.00909477]
[1641757638042,14.6102189,3202.6,3201.8,0.07806]
[1641757638043,1.07806,3202.5,3201.9,0.0096632]
[1641757638344,1.07806,3202.5,3201.6,0.01136847]
[1641757638542,3.76081199,3202.5,3201.6,0.01136847]
[1641757638743,1.35768038,3201.8,3201.6,0.01136847]
[1641757639148,1.41352289,3201.7,3201.6,0.01136847]
[1641757639845,2.90779364,3202.7,3201.8,0.78075]
[1641757640045,2.90779364,3202.7,3201.6,0.08943847]
[1641757640046,0.07807,3202.7,3201.6,0.08943847]
[1641757640389,2.92508103,3202.9,3201.7,0.01080004]
[1641757640590,0.07806,3202.8,3201.8,1.63942]
[1641757640890,1.23660225,3202.1,3201.9,0.0096632]
[1641757641694,1.23660225,3202.1,3202.0,0.78069]
[1641757642092,1.23660225,3202.1,3202.0,0.00909477]
[1641757642293,1.18660225,3202.1,3202.0,0.00909477]
[1641757642493,1.18660225,3202.1,3201.8,1.63942]
[1641757642494,1.18660225,3202.1,3201.9,0.0096632]
[1641757642693,2.12260225,3202.1,3201.9,0.0096632]
[1641757643092,4.76320652,3202.1,3201.9,0.0096632]
[1641757643293,2.12260225,3202.1,3201.3,0.01307374]
[1641757643498,1.36272056,3201.6,3201.3,0.01307374]
[1641757643695,1.11507585,3201.4,3201.3,0.01307374]
[1641757643896,1.11507585,3201.4,3201.2,0.01364216]
[1641757644145,3.85,3201.3,3201.2,0.01364216]
[1641757644344,6.4732003,3201.3,3201.2,0.01364216]
[1641757644539,6.4732003,3201.3,3201.1,0.01421058]
[1641757644540,6.45779445,3201.3,3201.1,0.01421058]
[1641757644739,3.85,3201.3,3201.0,0.01477901]
[1641757645139,1.38077585,3201.4,3201.0,0.01477901]
[1641757645339,1.38077585,3201.4,3201.0,0.06372023]
[1641757645539,1.38077585,3201.4,3201.0,0.01477901]
[1641757645738,1.38077585,3201.4,3201.1,0.01421058]
[1641757645939,1.38077585,3201.4,3201.0,0.01477901]
[1641757646943,1.38077585,3201.4,3201.1,0.07752448]
[1641757647141,1.11507585,3201.4,3201.1,0.07752448]
[1641757647343,1.11507585,3201.4,3201.2,0.01364216]
[1641757647741,1.11507585,3201.4,3201.0,0.01477901]
[1641757649390,1.11507585,3201.4,3201.0,0.01580039]
[1641757649789,1.11507585,3201.4,3201.1,0.01421058]
[1641757651293,2.75674035,3201.3,3201.1,0.01421058]
[1641757651496,8.35,3201.2,3201.1,0.01421058]
[1641757651739,11.22751124,3201.2,3201.1,0.01421058]
[1641757652142,3.87751124,3201.2,3201.1,0.01421058]
[1641757652543,1.07809,3201.2,3201.1,0.01421058]
[1641757652745,1.36272056,3201.6,3200.7,0.07809]
[1641757653042,1.36272056,3201.6,3200.8,0.09204904]
[1641757653440,1.36272056,3201.6,3200.9,0.01534743]
[1641757653641,1.36272056,3201.6,3201.1,0.7809]
[1641757653939,1.36272056,3201.6,3201.2,0.01364216]
[1641757654240,2.44081056,3201.6,3201.2,0.01364216]
[1641757654439,1.44081056,3201.6,3201.2,0.01364216]
[1641757654642,1.44081056,3201.6,3201.0,0.7809]
[1641757654838,1.36272056,3201.6,3201.1,0.0626375]
[1641757655038,1.36272056,3201.6,3201.1,0.01421058]
[1641757655239,1.36272056,3201.6,3201.2,0.01364216]
[1641757655488,1.36272056,3201.6,3200.9,0.01534743]
[1641757656592,0.07809,3202.1,3201.0,0.45]
[1641757656790,0.07807,3202.2,3201.1,1.66021747]
[1641757656991,3.8475,3202.5,3201.2,0.45]
[1641757657194,4.14572107,3202.7,3201.2,0.76364216]
[1641757657391,4.14572107,3202.7,3201.3,12.59727374]
[1641757657592,1.23462149,3202.3,3201.4,1.00828569]
[1641757657793,1.23462149,3202.3,3201.4,0.01250531]
[1641757658093,19.54462149,3202.3,3201.4,0.01250531]
[1641757658294,3.80711925,3202.2,3201.4,0.01250531]
[1641757658493,18.31,3202.1,3200.6,0.0170527]
[1641757658691,1.27697018,3201.1,3200.6,0.0170527]
[1641757658892,4.06643424,3201.8,3200.6,0.0170527]
[1641757659151,5.06643424,3201.8,3200.6,0.0170527]
[1641757659939,1.1617217,3201.0,3200.6,0.0170527]
[1641757660340,1.11907197,3201.3,3200.6,0.0170527]
[1641757660742,1.11907197,3201.3,3200.7,0.05913409]
[1641757661145,1.11907197,3201.3,3200.8,0.01591586]
[1641757661344,1.28706344,3201.0,3200.8,0.01591586]
[1641757661546,0.07809,3201.2,3200.6,0.0170527]
[1641757661745,1.0,3201.5,3200.7,0.05856975]
[1641757661947,0.0781,3202.0,3200.7,0.05856975]
[1641757662144,0.0781,3202.0,3200.6,0.0170527]
[1641757662145,0.0781,3202.0,3200.9,0.059014]
[1641757662450,0.07807,3202.2,3201.0,0.09284901]
[1641757662645,2.83866945,3202.1,3201.3,0.78084]
[1641757662912,0.07807,3202.0,3201.4,0.06581207]
[1641757663111,0.07807,3202.7,3201.4,0.07831738]
[1641757663308,0.07806,3202.8,3201.4,0.01250531]
[1641757663513,2.73702432,3202.8,3201.5,0.01193689]
[1641757663712,0.7807959,3202.7,3201.4,0.7807722]
[1641757663910,0.07806,3202.6,3201.4,1.56148]
[1641757664111,18.31,3202.4,3201.5,0.01193689]
[1641757664311,0.07806,3202.3,3201.5,0.01193689]
[1641757664510,1.19445438,3202.3,3201.5,0.01193689]
[1641757664711,0.07806,3202.2,3201.5,0.01193689]
[1641757664913,0.07806,3202.2,3201.6,1.24105711]
[1641757665311,0.3,3202.6,3201.7,0.01080004]
[1641757665312,0.07806,3202.4,3201.7,0.01080004]
[1641757665512,1.3,3202.8,3201.7,0.01080004]
[1641757665513,0.07806,3202.5,3201.7,0.01080004]
[1641757665713,0.07806,3202.7,3201.7,0.08886004]
[1641757665918,0.07806,3202.9,3201.7,6.73766004]
[1641757666117,0.07806,3202.9,3202.3,0.78063]
[1641757666515,1.40277431,3202.9,3202.4,0.06476814]
[1641757666744,1.40277431,3202.9,3202.4,0.00682108]
[1641757666941,2.40277431,3202.9,3202.5,0.00625266]
[1641757667143,2.6987348,3202.8,3202.4,0.00682108]
[1641757667344,0.07806,3202.7,3202.1,0.00852635]
[1641757667646,1.07806,3202.7,3201.8,0.01023162]
[1641757667843,2.69025796,3202.6,3201.8,0.01023162]
[1641757668042,1.34901246,3202.2,3201.8,0.01023162]
[1641757668848,1.34901246,3202.2,3201.7,0.01080004]
[1641757670988,1.34901246,3202.2,3201.7,0.08281864]
[1641757671196,0.00227369,3202.1,3201.7,0.08281864]
[1641757671400,2.68655644,3202.1,3201.7,0.08281864]
[1641757671593,0.00170527,3202.0,3201.4,1.1347]
[1641757671790,1.1766622,3201.9,3201.4,1.1347]
[1641757671989,1.17779904,3201.9,3201.5,0.00113685]
[1641757672589,1.1734119,3201.6,3201.5,0.00113685]
[1641757673189,1.1734119,3201.6,3201.4,0.00170527]
[1641757673693,6.27807,3201.5,3201.2,0.00284212]
[1641757673990,1.21806257,3201.4,3201.1,0.00341054]
[1641757674239,0.07809,3201.3,3201.1,0.00341054]
[1641757675842,2.76951056,3201.3,3201.1,0.00341054]
[1641757676043,6.55,3201.2,3201.1,0.00341054]
[1641757676245,9.3525601,3201.2,3201.1,0.00341054]
[1641757676744,1.07809,3201.2,3201.1,0.00341054]
[1641757677144,0.07809,3201.2,3201.1,0.00341054]
[1641757677545,7.08134157,3201.2,3201.1,0.00341054]
[1641757677997,1.07809,3201.2,3201.1,0.00341054]
[1641757678389,0.07809,3201.2,3201.1,0.00341054]
[1641757679490,1.1734119,3201.6,3201.2,0.07453378]
[1641757679689,0.1,3201.2,3201.1,0.00341054]
[1641757679892,0.1,3201.2,3200.7,0.01240829]
[1641757680292,0.1,3201.2,3200.7,0.78098]
[1641757680498,0.1,3201.2,3200.6,0.07809]
[1641757680499,1.29638635,3200.8,3200.6,0.07809]
[1641757680892,1.29638635,3200.8,3200.7,0.00568424]
[1641757681642,9.12767371,3200.8,3200.7,0.00568424]
[1641757681840,11.85188403,3200.8,3200.7,0.00568424]
[1641757682540,5.30188403,3200.8,3200.7,0.00568424]
[1641757683145,2.57767371,3200.8,3200.7,0.00568424]
[1641757683351,4.30447255,3200.8,3200.4,0.00738951]
[1641757683549,23.4270126,3200.8,3200.4,0.00738951]
[1641757683747,23.4270126,3200.8,3200.0,0.0096632]
[1641757683947,21.66892681,3200.8,3199.9,0.01023163]
[1641757684147,1.0,3200.7,3199.9,0.01023163]
[1641757684349,1.39034048,3200.0,3199.9,0.01023163]
[1641757684548,1.18982309,3200.0,3199.9,0.01023163]
[1641757684849,1.18982309,3200.0,3199.8,0.78124]
[1641757685247,1.18982309,3200.0,3199.9,0.01023163]
[1641757685899,2.5052883,3200.0,3199.9,0.01023163]
[1641757686302,2.5052883,3200.0,3199.6,0.0119369]
[1641757687100,2.5052883,3200.0,3199.7,0.09864747]
[1641757687501,2.5052883,3200.0,3199.8,0.01080005]
[1641757687901,2.5052883,3200.0,3199.7,0.01136847]
[1641757688101,2.5052883,3200.0,3199.7,0.06569159]
[1641757688502,2.5052883,3200.0,3199.8,0.01080005]
[1641757688901,2.5052883,3200.0,3199.6,0.0119369]
[1641757689143,1.07811,3199.9,3199.6,0.0119369]
[1641757690343,18.31,3199.7,3199.6,0.0119369]
[1641757690543,19.68813,3199.7,3199.6,0.0119369]
[1641757690744,19.38813,3199.7,3199.6,0.0119369]
[1641757690952,19.38813,3199.7,3198.8,2.69351222]
[1641757691144,19.38813,3199.6,3198.8,0.01648428]
[1641757691347,1.39439137,3199.4,3198.9,0.01591586]
[1641757691544,1.13853298,3198.9,3198.6,0.01762113]
[1641757691745,1.13853298,3198.9,3198.5,0.87783955]
[1641757691950,1.13853298,3198.9,3198.6,0.01762113]
[1641757692643,1.13853298,3198.9,3198.5,6.12818955]
[1641757692904,1.13853298,3198.9,3198.6,0.07915532]
[1641757693100,1.13853298,3198.9,3198.6,0.01762113]
[1641757693799,1.13853298,3198.9,3198.6,0.79908113]
[1641757693998,1.13853298,3198.9,3198.7,0.06583693]
[1641757694200,1.13853298,3198.9,3198.7,0.01705271]
[1641757694399,1.13853298,3198.9,3198.8,0.01648428]
[1641757694600,1.13853298,3198.9,3198.7,0.01705271]
[1641757695000,1.13853298,3198.9,3198.7,0.09757046]
[1641757695302,1.13853298,3198.9,3198.8,0.01648428]
[1641757695700,1.13853298,3198.9,3198.7,0.07757306]
[1641757695899,1.13853298,3198.9,3198.8,0.01648428]
[1641757696101,0.07814,3199.9,3198.8,0.01648428]
[1641757696305,0.07814,3199.9,3198.7,3.45497698]
[1641757696641,0.07813,3200.0,3199.1,6.11]
[1641757697044,0.07813,3200.0,3199.2,0.01421059]
[1641757697241,1.12260746,3199.6,3199.2,0.01421059]
[1641757699849,1.20073746,3199.6,3199.2,0.01421059]
[1641757700249,1.20073746,3199.6,3199.2,0.79556059]
[1641757700495,1.12260746,3199.6,3199.2,0.79556059]
[1641757700696,1.12260746,3199.6,3199.3,0.01364217]
[1641757700897,0.89260746,3199.6,3199.3,0.01364217]
[1641757701296,0.07813,3200.0,3199.3,0.01364217]
[1641757701500,0.07813,3200.1,3199.4,0.78132]
[1641757701697,0.07813,3200.6,3199.6,0.08176218]
[1641757701894,0.07811,3200.9,3199.6,0.08176218]
[1641757702095,0.07811,3200.9,3199.8,0.04894328]
[1641757702497,0.07811,3200.9,3199.9,0.01023163]
[1641757702696,1.32067066,3200.5,3199.9,0.01023163]
[1641757702899,0.07811,3200.4,3199.7,3.41125201]
[1641757703098,0.07811,3200.9,3199.8,1.1407]
[1641757703299,0.07811,3200.9,3199.9,2.66597046]
[1641757703498,0.0781,3201.1,3199.9,3.12620209]
[1641757703698,1.38253762,3200.7,3200.0,0.0096632]
[1641757704152,1.10649188,3200.6,3200.0,0.0096632]
[1641757705053,1.38253762,3200.7,3200.0,1.5718332]
[1641757705246,1.38253762,3200.7,3200.1,2.68805168]
[1641757705447,0.0781,3200.9,3200.1,2.69714646]
[1641757705747,0.0781,3201.1,3200.5,0.7810024]
[1641757705947,1.22667576,3200.9,3200.3,1.56204]
[1641757706147,1.22667576,3200.9,3200.6,0.00625266]
[1641757706347,0.97667576,3200.9,3200.4,0.00738951]
[1641757706548,0.0781,3201.1,3200.4,0.00738951]
[1641757706947,0.0781,3201.1,3200.6,1.5619]
[1641757707148,0.1,3201.2,3200.6,1.5619]
[1641757707149,0.1,3201.2,3200.7,0.05130994]
[1641757707349,0.1,3201.2,3200.8,0.0781]
[1641757707547,0.1,3201.2,3200.8,0.08321582]
[1641757707748,0.1,3201.2,3201.0,0.78082]
[1641757708003,0.1,3201.2,3201.1,0.07809]
[1641757708201,0.1,3201.2,3201.1,0.00341054]
[1641757709696,0.1,3201.2,3200.8,0.00511582]
[1641757710100,0.1,3201.2,3200.9,0.78094]
[1641757710496,0.1,3201.2,3201.0,0.00397897]
[1641757711300,0.1,3201.2,3200.8,0.00511582]
[1641757714550,0.1,3201.2,3200.9,0.05441698]
[1641757714947,0.1,3201.2,3201.0,0.00397897]
[1641757716303,0.1,3201.2,3200.8,0.00511582]
[1641757716505,1.40799505,3200.9,3200.8,0.00511582]
[1641757716704,1.30799505,3200.9,3200.8,0.00511582]
[1641757717106,1.30799505,3200.9,3200.6,0.00625266]
[1641757717704,2.38147338,3200.9,3200.6,0.00625266]
[1641757717906,1.30799505,3200.9,3200.6,0.00625266]
[1641757718503,0.1,3201.2,3200.6,2.64043965]
[1641757718905,0.1,3201.2,3200.7,0.059237]
[1641757719145,0.1,3201.2,3200.6,3.65317702]
[1641757719346,0.1,3201.2,3200.8,0.00511582]
[1641757719750,0.1,3201.2,3200.9,0.05349364]
[1641757719947,0.1,3201.2,3200.9,0.78094]
[1641757720151,0.1,3201.2,3201.0,2.72466869]
[1641757720355,1.18425147,3202.4,3201.2,0.0794016]
[1641757720356,0.07809,3202.3,3201.2,0.0794016]
[1641757720550,0.07809,3202.3,3201.3,0.07807]
[1641757720749,0.00227369,3202.1,3201.3,0.0803437]
[1641757720951,0.00227369,3202.1,3201.4,0.00170527]
[1641757721149,0.00170527,3202.0,3201.6,1.56137]
[1641757721550,0.00113684,3201.9,3201.6,1.56137]
[1641757721751,0.00113684,3201.9,3201.6,1.63944]
[1641757721950,0.00341054,3202.3,3201.6,1.56137]
[1641757722357,0.00284211,3202.2,3201.6,1.56137]
[1641757722551,0.00284211,3202.2,3201.7,6.8671]
[1641757722752,1.45836443,3202.1,3201.9,0.78066]
[1641757723011,1.45836443,3202.1,3201.7,6.8671]
[1641757723212,0.00170527,3202.0,3201.7,6.8671]
[1641757723604,0.00113684,3201.9,3201.7,6.8671]
[1641757724005,1.23398902,3201.9,3201.7,6.8671]
[1641757724203,1.23398902,3201.9,3201.4,2.73815527]
[1641757724404,1.23398902,3201.9,3201.4,1.56315527]
[1641757724605,1.41304906,3201.6,3201.5,0.00113685]
[1641757726744,1.41304906,3201.6,3201.4,0.00170527]
[1641757727744,1.41304906,3201.6,3201.4,0.07086519]
[1641757728143,1.41304906,3201.6,3201.3,0.78082]
[1641757728144,1.41304906,3201.6,3201.5,0.00113685]
[1641757728543,1.41304906,3201.6,3201.4,0.00170527]
[1641757729346,1.41304906,3201.6,3201.3,0.0022737]
[1641757729847,1.41304906,3201.6,3201.0,0.00397897]
[1641757730050,1.20543753,3201.3,3201.0,0.00397897]
[1641757731200,1.41304906,3201.6,3201.0,0.00397897]
[1641757731400,1.12056712,3201.1,3201.0,0.00397897]
[1641757738005,0.00169908,3201.6,3201.1,0.09864747]
[1641757738204,0.00169908,3201.6,3201.3,0.78076]
[1641757738501,0.00169908,3201.6,3201.4,0.00170527]
[1641757738903,1.22322769,3201.6,3201.4,0.00170527]
[1641757739503,1.22322769,3201.6,3201.3,0.0022737]
[1641757740308,1.22152861,3201.6,3201.3,0.0022737]
[1641757741506,1.42105001,3201.5,3201.3,0.0022737]
[1641757741943,1.42105001,3201.5,3201.2,0.00284212]
[1641757742148,0.07809,3201.4,3201.2,0.00284212]
[1641757742344,0.07809,3201.4,3201.1,0.00341054]
[1641757743047,2.65921155,3201.3,3201.1,0.00341054]
[1641757743243,0.07809,3201.2,3201.0,0.00204507]
[1641757743644,0.07809,3201.2,3201.0,0.0030672]
[1641757743845,19.38809,3201.2,3201.0,0.00204419]
[1641757744044,19.38809,3201.2,3200.1,0.07809]
[1641757744045,10.15,3201.0,3200.1,0.07809]
[1641757744245,0.0781,3200.9,3200.1,0.07809]
[1641757744444,1.0781,3200.9,3200.2,0.00511582]
[1641757744645,0.7812174,3200.7,3200.2,0.00511582]
[1641757744846,0.0781,3200.6,3200.2,0.00511582]
[1641757745501,2.26487447,3200.3,3200.2,0.00511582]
[1641757745700,2.65921155,3200.8,3200.2,0.00511582]
[1641757745898,0.0781,3201.0,3200.2,0.00511582]